bitfinex-derivatives/quotes_SOLF0:USTF0_20240824
["timestamp","ask_amount","ask_price","bid_price","bid_amount"]
[1724543083971,1.2744,159.87,159.81,13.35638583]
[1724543084178,1.2744,159.87,159.82,12.6628888]
[1724543084373,1.2744,159.87,159.83,4.71638583]
[1724543084587,13.0405,159.87,159.82,3.1269]
[1724543084787,8.64,159.86,159.8,9.9379]
[1724543084989,8.64,159.86,159.81,4.71597607]
[1724543085193,0.04041527,159.85,159.81,3.17009665]
[1724543085492,0.04041527,159.85,159.81,0.04299665]
[1724543086287,0.04041527,159.85,159.82,3.127]
[1724543086786,0.04041527,159.85,159.81,0.04299665]
[1724543087490,8.64,159.84,159.81,0.04299665]
[1724543088386,8.64,159.84,159.81,3.17009665]
[1724543092693,3.1271,159.82,159.81,0.04299665]
[1724543092886,11.7671,159.82,159.81,0.04299665]
[1724543093494,8.64,159.82,159.81,0.04299665]
[1724543095289,11.7671,159.82,159.81,0.04299665]
[1724543095493,3.11651955,159.84,159.81,0.04299665]
[1724543095791,11.75651955,159.84,159.81,0.04299665]
[1724543096486,8.64,159.84,159.81,0.04299665]
[1724543097299,3.1269,159.83,159.81,0.04299665]
[1724543102203,0.04041527,159.85,159.81,0.04299665]
[1724543102398,0.04041527,159.85,159.82,8.64]
[1724543103303,0.04041527,159.85,159.82,11.7669]
[1724543103499,0.04041527,159.85,159.83,2.7128996]
[1724543103705,0.04041527,159.85,159.82,11.7669]
[1724543103909,0.04041527,159.85,159.83,2.712897]
[1724543104107,0.04041527,159.85,159.82,11.7669]
[1724543104504,0.04041527,159.85,159.83,2.71287088]
[1724543104805,0.04041527,159.85,159.82,11.7669]
[1724543105001,0.04041527,159.85,159.83,2.7129229]
[1724543105200,0.04041527,159.85,159.82,11.7669]
[1724543105800,0.04041527,159.85,159.83,2.71287061]
[1724543106101,0.04041527,159.85,159.82,11.7669]
[1724543106405,0.04041527,159.85,159.83,2.71287061]
[1724543106704,0.04041527,159.85,159.82,11.7669]
[1724543107095,0.04041527,159.85,159.83,2.71300022]
[1724543107300,0.04041527,159.85,159.82,11.7669]
[1724543107803,0.04041527,159.85,159.83,2.71303333]
[1724543108006,0.04041527,159.85,159.82,11.7669]
[1724543108400,0.04041527,159.85,159.83,2.71306222]
[1724543108597,0.04041527,159.85,159.82,11.7669]
[1724543108793,0.04041527,159.85,159.83,2.7129036]
[1724543108995,0.04041527,159.85,159.82,11.7669]
[1724543109308,0.04041527,159.85,159.83,2.71290599]
[1724543109713,0.04041527,159.85,159.82,11.7669]
[1724543109904,0.04041527,159.85,159.83,2.71291387]
[1724543110100,0.04041527,159.85,159.82,11.7669]
[1724543110907,0.04041527,159.85,159.83,2.71245152]
[1724543111105,0.04041527,159.85,159.82,11.7669]
[1724543111704,0.04041527,159.85,159.82,3.1269]
[1724543116016,0.04041527,159.85,159.84,3.1267]
[1724543116316,0.04041527,159.85,159.84,16.48007776]
[1724543117018,0.04041527,159.85,159.84,16.47987436]
[1724543117214,0.04041527,159.85,159.84,21.590964]
[1724543117412,8.64,159.94,159.84,18.464264]
[1724543117612,12.5,159.94,159.89,8.64]
[1724543118411,12.5,159.94,159.9,0.04774386]
[1724543118412,3.1252,159.92,159.9,0.04774386]
[1724543118616,0.04560555,159.93,159.9,0.04774386]
[1724543119217,3.17060555,159.93,159.9,0.04774386]
[1724543119411,11.81060555,159.93,159.9,0.04774386]
[1724543129530,0.04560555,159.93,159.9,3.17314386]
[1724543132832,11.81050555,159.93,159.9,0.04774386]
[1724543141326,8.64,159.91,159.9,0.04774386]
[1724543141734,11.7653,159.91,159.9,0.04774386]
[1724543144129,3.1253,159.91,159.9,0.04774386]
[1724543144429,4.3453,159.92,159.9,0.04774386]
[1724543148035,3.1253,159.91,159.9,0.04774386]
[1724543148546,11.7653,159.91,159.9,0.04774386]
[1724543149236,3.1253,159.91,159.9,0.04774386]
[1724543151137,4.3452,159.92,159.9,0.04774386]
[1724543151439,1.2201,159.92,159.9,0.04774386]
[1724543151844,0.04560555,159.93,159.9,0.04774386]
[1724543152342,3.17070555,159.93,159.9,0.04774386]
[1724543164448,0.04560555,159.93,159.9,3.17324386]
[1724543168248,0.04560555,159.93,159.92,11.7651]
[1724543168853,11.1951,160.0,159.95,3.1243]
[1724543169953,0.04177845,159.99,159.96,0.04670572]
[1724543170761,0.04177845,159.99,159.97,8.64]
[1724543171259,0.04177845,159.99,159.98,3.1239]
[1724543174759,0.04177845,159.99,159.97,15.6241]
[1724543177261,0.04177845,159.99,159.97,3.86]
[1724543177456,0.04177845,159.99,159.96,0.04670572]
[1724543178351,8.64,159.98,159.96,0.04670572]
[1724543178563,0.04177845,159.99,159.96,0.04670572]
[1724543178753,8.64,159.98,159.96,0.04670572]
[1724543180357,11.7641,159.98,159.96,0.04670572]
[1724543180956,3.16557845,159.99,159.96,0.04670572]
[1724543181463,3.124,159.98,159.96,0.04670572]
[1724543183573,11.7641,159.97,159.96,0.04670572]
[1724543189270,3.1241,159.97,159.96,0.04670572]
[1724543190376,3.124,159.98,159.96,0.04670572]
[1724543191779,1.26077845,159.99,159.96,0.04670572]
[1724543191982,0.04177845,159.99,159.96,0.04670572]
[1724543194783,0.04177845,159.99,159.96,3.17100572]
[1724543196884,0.04177845,159.99,159.98,3.1239]
[1724543197080,0.04177845,159.99,159.98,6.9839]
[1724543202685,0.04177845,159.99,159.98,15.6239]
[1724543203596,3.1229,160.04,160.0,3.1235]
[1724543203882,9.8496,160.06,160.0,3.1235]
[1724543204087,9.8496,160.06,159.98,15.6239]
[1724543204486,0.04521584,160.04,159.98,15.6239]
[1724543204682,0.04521584,160.04,160.0,0.03962031]
[1724543205686,3.1233,160.02,160.0,0.03962031]
[1724543206585,0.04521584,160.04,160.0,0.03962031]
[1724543207586,3.1233,160.02,160.0,0.03962031]
[1724543211294,3.1234,160.01,160.0,0.03962031]
[1724543214586,3.1245,159.96,159.95,3.86]
[1724543214988,3.1245,159.96,159.94,3.86]
[1724543215189,3.1242,159.97,159.94,3.86]
[1724543215689,3.17228845,159.97,159.94,3.90384944]
[1724543216593,3.1244,159.96,159.94,3.90384944]
[1724543216891,3.1244,159.96,159.94,0.04384944]
[1724543217202,3.1245,159.95,159.94,3.90384944]
[1724543219097,3.1244,159.96,159.94,3.90384944]
[1724543221192,3.17238845,159.97,159.94,3.90384944]
[1724543221390,3.17238845,159.97,159.94,0.04384944]
[1724543223794,0.04808845,159.97,159.94,0.04384944]
[1724543223991,3.1243,159.96,159.94,0.04384944]
[1724543227198,0.04808845,159.97,159.94,3.16854944]
[1724543227594,0.04808845,159.97,159.94,8.68384944]
[1724543228103,0.04808845,159.97,159.94,11.80844944]
[1724543230200,0.04808845,159.97,159.95,3.1245]
[1724543230406,0.04808845,159.97,159.94,8.68384944]
[1724543231306,0.04808845,159.97,159.94,11.80854944]
[1724543235907,0.04808845,159.97,159.94,0.04384944]
[1724543237010,3.1245,159.96,159.94,0.04384944]
[1724543240313,0.04808845,159.97,159.94,11.80854944]
[1724543240314,3.17228845,159.97,159.94,11.80854944]
[1724543243715,3.17228845,159.97,159.94,3.16854944]
[1724543243913,3.17228845,159.97,159.95,8.64]
[1724543244819,0.04808845,159.97,159.95,8.64]
[1724543245016,0.04808845,159.97,159.96,4.70617296]
[1724543245212,0.04808845,159.97,159.96,7.83047296]
[1724543245419,0.04808845,159.97,159.96,12.93308455]
[1724543245618,0.04808845,159.97,159.96,7.83047296]
[1724543246117,0.04808845,159.97,159.96,15.7544092]
[1724543246512,0.04808845,159.97,159.96,11.69047296]
[1724543247218,0.04808845,159.97,159.96,8.9843265]
[1724543247420,0.04808845,159.97,159.96,6.9843]
[1724543247922,0.04808845,159.97,159.96,9.69014531]
[1724543248317,0.04808845,159.97,159.96,11.69017181]
[1724543250420,0.04808845,159.97,159.96,6.9843]
[1724543250827,0.04808845,159.97,159.96,11.68989787]
[1724543254028,0.04808845,159.97,159.96,6.9843]
[1724543254239,0.04808845,159.97,159.96,9.68993626]
[1724543254428,0.04808845,159.97,159.96,11.68993054]
[1724543254632,0.04808845,159.97,159.96,19.61081102]
[1724543257641,0.04808845,159.97,159.96,6.9843]
[1724543257843,0.04808845,159.97,159.96,19.61045756]
[1724543259438,0.04808845,159.97,159.96,28.25045756]
[1724543259742,0.04808845,159.97,159.96,25.42956877]
[1724543260336,0.04808845,159.97,159.96,11.66914272]
[1724543261340,0.04808845,159.97,159.96,8.96406126]
[1724543261544,0.04808845,159.97,159.96,11.67085571]
[1724543261937,0.04808845,159.97,159.96,28.23654473]
[1724543262542,0.04808845,159.97,159.96,25.41399938]
[1724543264040,0.04808845,159.97,159.96,28.23674698]
[1724543264545,0.04808845,159.97,159.96,25.41399938]
[1724543264844,0.04808845,159.97,159.96,11.7643]
[1724543265144,0.04808845,159.97,159.96,25.43531021]
[1724543268446,0.04808845,159.97,159.96,15.6243]
[1724543268648,0.04808845,159.97,159.96,17.62416456]
[1724543268840,0.04808845,159.97,159.96,18.33166037]
[1724543269041,0.04808845,159.97,159.96,23.03882961]
[1724543269449,0.04808845,159.97,159.96,28.14340588]
[1724543270451,0.04808845,159.97,159.96,12.51910588]
[1724543270644,0.04808845,159.97,159.96,2.70736037]
[1724543270834,0.04808845,159.97,159.96,6.56736037]
[1724543272337,0.04808845,159.97,159.96,9.69166037]
[1724543273942,0.04808845,159.97,159.96,14.40000114]
[1724543274148,0.04808845,159.97,159.96,23.04000114]
[1724543275050,0.04808845,159.97,159.96,19.18000114]
[1724543275547,0.04808845,159.97,159.96,16.47264077]
[1724543277452,0.04808845,159.97,159.96,4.70834077]
[1724543277654,0.04808845,159.97,159.94,12.54384944]
[1724543277849,0.04808845,159.97,159.95,2.00015445]
[1724543278046,0.04808845,159.97,159.94,12.54384944]
[1724543278246,0.04808845,159.97,159.95,4.70828415]
[1724543278446,0.04808845,159.97,159.94,12.54384944]
[1724543278643,0.04808845,159.97,159.95,4.70826104]
[1724543278949,0.04808845,159.97,159.94,12.54384944]
[1724543279150,0.04808845,159.97,159.95,4.70737184]
[1724543279351,0.04808845,159.97,159.95,3.1245]
[1724543286054,0.04808845,159.97,159.94,15.66854944]
[1724543286252,0.04808845,159.97,159.95,2.70669778]
[1724543286451,0.04808845,159.97,159.94,0.04384944]
[1724543287060,3.17228845,159.97,159.94,0.04384944]
[1724543287957,3.1244,159.96,159.94,0.04384944]
[1724543289359,3.1245,159.95,159.94,0.04384944]
[1724543294570,3.1244,159.96,159.94,0.04384944]
[1724543295466,4.42808845,159.97,159.94,0.04384944]
[1724543295765,1.30388845,159.97,159.94,0.04384944]
[1724543296570,3.1245,159.96,159.94,0.04384944]
[1724543298863,3.1245,159.95,159.94,0.04384944]
[1724543299367,3.1244,159.96,159.94,0.04384944]
[1724543303068,1.30388845,159.97,159.94,0.04384944]
[1724543303279,4.42818845,159.97,159.94,0.04384944]
[1724543304474,3.1244,159.96,159.94,0.04384944]
[1724543315381,3.1245,159.95,159.94,0.04384944]
[1724543315881,3.1244,159.96,159.94,0.04384944]
[1724543317081,0.04808845,159.97,159.94,0.04384944]
[1724543318083,0.04808845,159.97,159.95,3.1244]
[1724543321575,3.17218845,159.97,159.94,3.16854944]
[1724543322280,0.04808845,159.97,159.94,3.16854944]
[1724543325975,0.04808845,159.97,159.95,3.1244]
[1724543328081,0.04808845,159.97,159.96,3.1243]
[1724543328489,0.04808845,159.97,159.96,5.82772673]
[1724543328786,0.04808845,159.97,159.96,7.82773571]
[1724543331082,0.04808845,159.97,159.96,5.82772673]
[1724543331284,0.04808845,159.97,159.96,7.82778138]
[1724543332584,0.04808845,159.97,159.96,4.70348138]
[1724543332785,0.04808845,159.97,159.94,8.68384944]
[1724543332978,0.04808845,159.97,159.95,4.70417205]
[1724543333183,0.04808845,159.97,159.96,2.70400552]
[1724543333592,0.04808845,159.97,159.96,4.70405367]
[1724543334893,0.04808845,159.97,159.96,4.7040156]
[1724543338089,0.04808845,159.97,159.96,2.70327077]
[1724543338285,0.04808845,159.97,159.96,4.70329198]
[1724543338492,0.04808845,159.97,159.96,4.70328157]
[1724543338795,0.04808845,159.97,159.96,7.406517]
[1724543339492,0.04808845,159.97,159.96,2.70326036]
[1724543345990,0.04808845,159.97,159.96,5.40816011]
[1724543346192,0.04808845,159.97,159.96,2.70502447]
[1724543346900,0.04808845,159.97,159.95,3.1245]
[1724543347095,0.04808845,159.97,159.96,2.70509049]
[1724543347403,0.04808845,159.97,159.95,3.1245]
[1724543347597,0.04808845,159.97,159.96,2.70478773]
[1724543347797,0.04808845,159.97,159.95,3.1245]
[1724543347989,0.04808845,159.97,159.96,2.70485157]
[1724543348300,11.81218845,159.97,159.96,2.70485157]
[1724543348596,8.68808845,159.97,159.94,0.04384944]
[1724543348799,8.68808845,159.97,159.95,2.70553162]
[1724543348995,8.68808845,159.97,159.94,0.04384944]
[1724543349801,11.81238845,159.97,159.94,0.04384944]
[1724543350707,3.17238845,159.97,159.94,0.04384944]
[1724543351202,3.17238845,159.97,159.95,2.70693353]
[1724543351404,3.17238845,159.97,159.94,0.04384944]
[1724543351696,3.1243,159.96,159.95,2.70711287]
[1724543354107,3.1243,159.96,159.94,0.04384944]
[1724543354400,3.1243,159.96,159.95,2.70715453]
[1724543355000,3.1243,159.96,159.94,0.04384944]
[1724543355201,3.1243,159.96,159.95,4.70740558]
[1724543355395,3.1243,159.96,159.95,2.70708141]
[1724543356597,3.1243,159.96,159.94,0.04384944]
[1724543356903,3.1243,159.96,159.95,2.7074124]
[1724543357098,3.1243,159.96,159.94,0.04384944]
[1724543357298,3.1243,159.96,159.95,2.7081821]
[1724543358294,3.1245,159.95,159.94,0.04384944]
[1724543358497,3.1245,159.95,159.94,2.75328927]
[1724543359103,3.1245,159.95,159.94,0.04384944]
[1724543359701,11.7645,159.95,159.94,0.04384944]
[1724543362205,3.1244,159.96,159.94,0.04384944]
[1724543364208,0.04808845,159.97,159.94,3.16844944]
[1724543364408,0.04808845,159.97,159.94,0.04384944]
[1724543365407,3.17238845,159.97,159.94,0.04384944]
[1724543369611,3.1244,159.96,159.94,0.04384944]
[1724543372910,0.04808845,159.97,159.94,0.04384944]
[1724543373209,0.04808845,159.97,159.95,2.00029555]
[1724543373507,0.04808845,159.97,159.96,7.83377322]
[1724543373907,0.04808845,159.97,159.96,12.93844409]
[1724543374313,0.04808845,159.97,159.96,15.76159229]
[1724543376309,0.04808845,159.97,159.96,12.93541049]
[1724543376709,0.04808845,159.97,159.96,15.75854314]
[1724543377011,0.04808845,159.97,159.96,24.39854314]
[1724543378418,1.2426,160.03,160.0,3.1235]
[1724543378807,4.3656,160.03,160.0,3.1235]
[1724543379413,4.41193755,160.03,160.0,3.17004757]
[1724543379911,4.41193755,160.03,160.0,0.04654757]
[1724543380510,13.05193755,160.03,160.0,0.04654757]
[1724543380813,3.1232,160.02,160.0,0.04654757]
[1724543381008,11.7632,160.02,160.0,0.04654757]
[1724543381409,11.7634,160.01,160.0,0.04654757]
[1724543389319,3.1234,160.01,160.0,0.04654757]
[1724543389518,11.7634,160.01,160.0,0.04654757]
[1724543390322,3.1233,160.02,160.0,0.04654757]
[1724543391126,3.1234,160.01,160.0,0.04654757]
[1724543397221,11.7632,160.02,160.0,0.04654757]
[1724543400530,0.04633755,160.03,160.0,3.17004757]
[1724543402637,0.04633755,160.03,160.0,0.04654757]
[1724543402638,8.64,160.01,160.0,0.04654757]
[1724543402831,8.64,160.01,159.93,3.84]
[1724543403031,8.64,159.98,159.94,4.70874518]
[1724543403233,8.64,159.98,159.95,5.83316274]
[1724543403431,8.64,159.98,159.95,3.1245]
[1724543403738,8.68392163,159.98,159.95,3.1699728]
[1724543406833,0.04392163,159.98,159.97,8.64]
[1724543407334,0.04392163,159.98,159.97,16.47215659]
[1724543407537,2.6418,160.08,159.97,13.34805659]
[1724543407741,12.48,160.07,160.0,8.64]
[1724543408539,12.48,160.07,160.01,0.04423284]
[1724543408739,3.1229,160.04,160.01,0.04423284]
[1724543409046,8.68222639,160.05,160.01,0.04423284]
[1724543409239,8.64,160.04,160.01,0.04423284]
[1724543409847,0.04222639,160.05,160.01,0.04423284]
[1724543410536,3.1229,160.04,160.01,0.04423284]
[1724543415148,8.64,160.02,160.01,0.04423284]
[1724543415448,0.04222639,160.05,160.01,0.04423284]
[1724543416440,3.1229,160.04,160.01,0.04423284]
[1724543417954,3.123,160.03,160.01,0.04423284]
[1724543422448,8.64,160.04,160.01,0.04423284]
[1724543422644,0.04222639,160.05,160.01,0.04423284]
[1724543422852,0.04222639,160.05,160.02,8.64]
[1724543424450,0.04222639,160.05,160.03,3.1228]
[1724543430463,0.04222639,160.05,160.04,11.7628]
[1724543433168,3.84,160.13,160.08,3.1219]
[1724543433666,13.06994117,160.14,160.08,3.1219]
[1724543434273,0.04567366,160.13,160.09,0.0467324]
[1724543434474,0.04567366,160.13,160.09,8.6867324]
[1724543434666,0.04567366,160.13,160.11,8.64]
[1724543434868,0.04567366,160.13,160.1,13.0043]
[1724543435063,0.04567366,160.13,160.1,16.8443]
[1724543435264,0.04567366,160.13,160.1,13.0043]
[1724543435461,0.04567366,160.13,160.1,9.8827]
[1724543436366,3.16677366,160.13,160.09,0.0467324]
[1724543436765,8.64,160.12,160.09,0.0467324]
[1724543436961,11.7616,160.1,160.09,0.0467324]
[1724543438764,3.1215,160.11,160.09,0.0467324]
[1724543439070,1.29787366,160.13,160.09,8.6867324]
[1724543439458,0.04567366,160.13,160.09,8.6867324]
[1724543439858,0.04567366,160.13,160.09,11.8084324]
[1724543440062,0.04567366,160.13,160.09,8.6867324]
[1724543441372,0.04567366,160.13,160.1,3.1215]
[1724543441562,11.80667366,160.13,160.09,0.0467324]
[1724543441760,8.68567366,160.13,160.09,0.0467324]
[1724543441973,8.64,160.12,160.09,0.0467324]
[1724543443266,3.1213,160.12,160.09,0.0467324]
[1724543444066,3.16677366,160.13,160.09,0.0467324]
[1724543445162,3.1216,160.1,160.09,0.0467324]
[1724543446067,13.0054,160.11,160.09,0.0467324]
[1724543447776,3.1216,160.1,160.09,0.0467324]
[1724543451275,3.1219,160.09,160.04,3.1227]
[1724543451476,8.64,160.08,160.04,3.1227]
[1724543452578,8.6830822,160.08,160.04,3.16952592]
[1724543453679,8.64,160.06,160.04,0.04682592]
[1724543454083,11.7625,160.06,160.04,0.04682592]
[1724543454481,0.0430822,160.08,160.05,8.64]
[1724543455384,0.0430822,160.08,160.07,3.1222]
[1724543455988,3.82,160.16,160.07,8.64]
[1724543456180,8.64,160.19,160.08,1.2969]
[1724543456384,8.64,160.19,160.11,8.64]
[1724543456686,8.64,160.17,160.12,3.1212]
[1724543457090,0.04148028,160.16,160.13,0.03939514]
[1724543457684,0.04148028,160.16,160.13,8.67939514]
[1724543458081,0.04148028,160.16,160.15,3.1206]
[1724543464886,0.04148028,160.16,160.13,0.03939514]
[1724543465285,0.04148028,160.16,160.15,3.1206]
[1724543465489,0.04148028,160.16,160.15,11.7606]
[1724543468390,0.04148028,160.16,160.15,6.9406]
[1724543470490,0.04148028,160.16,160.15,3.82]
[1724543470798,0.04148028,160.16,160.13,0.03939514]
[1724543470995,0.04148028,160.16,160.13,3.85939514]
[1724543471597,0.04148028,160.16,160.13,0.03939514]
[1724543471992,3.16208028,160.16,160.13,0.03939514]
[1724543472799,3.1207,160.15,160.13,0.03939514]
[1724543473092,0.04148028,160.16,160.13,0.03939514]
[1724543473296,3.1206,160.15,160.13,0.03939514]
[1724543473491,0.04148028,160.16,160.13,0.03939514]
[1724543474099,3.1208,160.15,160.13,0.03939514]
[1724543474707,3.1208,160.14,160.13,0.03939514]
[1724543475605,1.25478028,160.16,160.13,0.03939514]
[1724543477305,4.37518028,160.16,160.13,0.03939514]
[1724543477806,1.25478028,160.16,160.13,0.03939514]
[1724543478004,3.1207,160.15,160.13,0.03939514]
[1724543478402,3.16188028,160.16,160.13,0.03939514]
[1724543479500,0.04148028,160.16,160.13,0.03939514]
[1724543480206,0.04148028,160.16,160.14,3.1207]
[1724543480601,0.04148028,160.16,160.13,0.03939514]
[1724543480800,0.04148028,160.16,160.14,3.1208]
[1724543481396,0.04148028,160.16,160.13,0.03939514]
[1724543481601,0.04148028,160.16,160.15,3.1206]
[1724543484800,3.1197,160.2,160.16,3.1203]
[1724543485005,3.1197,160.2,160.15,21.57]
[1724543485903,0.04577058,160.19,160.15,21.57]
[1724543486108,0.04577058,160.19,160.16,0.04368399]
[1724543486298,0.04577058,160.19,160.17,3.1202]
[1724543490310,0.04577058,160.19,160.18,3.12]
[1724543490817,0.04577058,160.19,160.16,21.61368399]
[1724543491018,0.04577058,160.19,160.17,3.1201]
[1724543492009,0.04577058,160.19,160.18,3.12]
[1724543492209,5.0822,160.28,160.17,21.57]
[1724543492419,22.7866,160.26,160.18,3.82]
[1724543493018,3.1192,160.23,160.18,3.12]
[1724543493210,0.04570194,160.22,160.19,0.03939117]
[1724543494020,3.1195,160.21,160.19,0.03939117]
[1724543494913,3.1197,160.2,160.19,0.03939117]
[1724543495111,21.57,160.2,160.13,3.82]
[1724543495508,2.5103,160.21,160.14,21.57]
[1724543496113,0.03983794,160.19,160.16,0.0394902]
[1724543496619,0.03983794,160.19,160.16,3.1597902]
[1724543498626,0.03983794,160.19,160.16,11.7897902]
[1724543499716,0.03983794,160.19,160.17,3.1202]
[1724543502623,0.03983794,160.19,160.18,3.12]
[1724543504128,4.31200114,160.26,160.17,8.63]
[1724543504129,6.2342,160.34,160.17,8.63]
[1724543504329,8.63,160.29,160.21,8.63]
[1724543504524,1.01398821,160.28,160.21,8.63]
[1724543504923,8.63,160.29,160.21,8.63]
[1724543505127,8.63,160.29,160.22,3.1191]
[1724543505322,0.04524453,160.27,160.23,0.03953068]
[1724543505525,0.04524453,160.27,160.21,8.63]
[1724543505727,0.04524453,160.27,160.18,5.1072]
[1724543505728,0.04524453,160.27,160.23,8.6774226]
[1724543506434,0.04524453,160.27,160.23,12.5774226]
[1724543506727,0.04524453,160.27,160.25,3.1187]
[1724543507633,0.04524453,160.27,160.24,3.1188]
[1724543509639,0.04524453,160.27,160.23,3.9474226]
[1724543510431,3.16354453,160.27,160.23,7.0664226]
[1724543511940,0.04524453,160.27,160.25,3.1185]
[1724543513043,0.04524453,160.27,160.24,3.1188]
[1724543513441,0.04524453,160.27,160.23,7.0664226]
[1724543514049,3.16354453,160.27,160.23,7.0664226]
[1724543514339,3.16354453,160.27,160.24,3.1188]
[1724543514340,0.04524453,160.27,160.24,3.1188]
[1724543517149,0.04524453,160.27,160.26,3.1185]
[1724543518038,6.2319,160.4,160.24,21.55]
[1724543518243,1.01354295,160.34,160.24,21.55]
[1724543518842,3.1175,160.31,160.27,3.1182]
[1724543519040,3.15961482,160.31,160.27,3.1182]
[1724543519240,3.15961482,160.31,160.27,3.16229446]
[1724543519648,3.15961482,160.31,160.27,0.04409446]
[1724543520552,3.15961482,160.31,160.27,3.16229446]
[1724543520752,3.1177,160.3,160.27,0.04409446]
[1724543522551,3.1177,160.3,160.27,3.16239446]
[1724543522743,3.15971482,160.31,160.27,3.16239446]
[1724543523351,3.15971482,160.31,160.28,3.1181]
[1724543523551,3.1177,160.3,160.27,0.04409446]
[1724543523939,0.04211482,160.31,160.27,3.16219446]
[1724543524143,3.15971482,160.31,160.27,3.16219446]
[1724543525751,0.04211482,160.31,160.27,3.16219446]
[1724543526048,0.04211482,160.31,160.27,0.04409446]
[1724543526049,3.1177,160.3,160.27,0.04409446]
[1724543526253,0.04211482,160.31,160.27,0.04409446]
[1724543527356,0.04211482,160.31,160.28,3.118]
[1724543527852,0.04211482,160.31,160.27,0.04409446]
[1724543529356,3.15961482,160.31,160.27,3.16229446]
[1724543530958,0.04211482,160.31,160.27,0.04409446]
[1724543531155,0.04211482,160.31,160.29,8.62]
[1724543532461,0.04211482,160.31,160.3,8.62]
[1724543533161,0.04211482,160.31,160.3,11.7377]
[1724543533860,0.04211482,160.31,160.3,8.62]
[1724543534062,0.04211482,160.31,160.29,6.9979]
[1724543534265,8.66211482,160.31,160.27,0.04409446]
[1724543534463,8.66211482,160.31,160.29,3.88]
[1724543534856,0.04211482,160.31,160.29,3.88]
[1724543535460,3.15971482,160.31,160.29,3.88]
[1724543535662,0.04211482,160.31,160.29,3.88]
[1724543536162,0.04211482,160.31,160.29,12.5]
[1724543536759,8.62,160.38,160.3,8.62]
[1724543537154,3.1164,160.37,160.33,3.117]
[1724543537755,3.16044572,160.37,160.33,3.16337292]
[1724543538759,0.04404572,160.37,160.36,3.1165]
[1724543538965,0.04404572,160.37,160.34,3.88]
[1724543540070,3.1166,160.36,160.33,0.04637292]
[1724543540263,3.1166,160.36,160.33,3.92637292]
[1724543540663,3.1169,160.35,160.33,0.04637292]
[1724543540965,0.04404572,160.37,160.33,3.92637292]
[1724543541367,3.1169,160.35,160.33,0.04637292]
[1724543542068,0.04404572,160.37,160.33,0.04637292]
[1724543542069,3.1166,160.36,160.33,0.04637292]
[1724543542672,3.1168,160.35,160.33,0.04637292]
[1724543543268,0.04404572,160.37,160.33,0.04637292]
[1724543543961,3.1167,160.36,160.33,0.04637292]
[1724543544158,0.04404572,160.37,160.33,0.04637292]
[1724543544370,21.59404572,160.37,160.33,0.04637292]
[1724543544862,3.1169,160.34,160.33,0.04637292]
[1724543546772,0.04404572,160.37,160.33,0.04637292]
[1724543547467,21.55,160.36,160.33,0.04637292]
[1724543548469,3.1169,160.34,160.33,0.04637292]
[1724543551274,3.1167,160.35,160.33,0.04637292]
[1724543551475,0.04404572,160.37,160.33,0.04637292]
[1724543551877,3.1167,160.36,160.33,0.04637292]
[1724543552386,3.1166,160.36,160.33,0.04637292]
[1724543553674,0.04404572,160.37,160.33,0.04637292]
[1724543554480,3.1166,160.36,160.33,0.04637292]
[1724543556383,3.1168,160.35,160.33,0.04637292]
[1724543556683,0.04404572,160.37,160.33,0.04637292]
[1724543557691,3.16044572,160.37,160.33,0.04637292]
[1724543557878,0.04404572,160.37,160.33,0.04637292]
[1724543558882,0.04404572,160.37,160.33,3.16347292]
[1724543560380,3.16044572,160.37,160.33,3.16347292]
[1724543563292,0.04404572,160.37,160.34,3.1167]
[1724543563789,0.04404572,160.37,160.34,3.96]
[1724543564098,0.04404572,160.37,160.36,8.62]
[1724543564286,0.04404572,160.37,160.36,11.7365]
[1724543564489,0.04404572,160.37,160.36,3.1165]
[1724543564791,0.04404572,160.37,160.34,5.2655]
[1724543566293,0.04404572,160.37,160.35,3.1167]
[1724543567291,0.04404572,160.37,160.35,11.7365]
[1724543567490,0.04404572,160.37,160.35,3.1165]
[1724543568896,0.04404572,160.37,160.34,8.3824]
[1724543569597,0.04404572,160.37,160.34,5.2655]
[1724543570299,0.04404572,160.37,160.35,3.1167]
[1724543571097,0.04404572,160.37,160.35,11.7367]
[1724543571694,0.04404572,160.37,160.36,3.1165]
[1724543574505,0.04404572,160.37,160.36,11.7365]
[1724543576702,0.04404572,160.37,160.36,3.1165]
[1724543577506,0.04404572,160.37,160.35,3.1167]
[1724543577703,0.04404572,160.37,160.36,3.96]
[1724543579003,0.04404572,160.37,160.36,15.6965]